[Event "Marshall Masters September 2024"]
[Site "New York"]
[Date "2024.09.20"]
[Round "1.1"]
[White "Ayyappan, Santhosh"]
[Black "Tang, Andrew"]
[Result "0-1"]
[ECO "D59"]
[WhiteElo "2014"]
[BlackElo "2524"]
[Annotator "TA"]
[PlyCount "138"]
[EventDate "2024.09.20"]
[EventCountry "USA"]
[SourceTitle "playchess.com"]
[Source "ChessBase"]
[SourceQuality "1"]
[TimeMode "Bronstein"]
[TimeControl "1500+5"]

{[%evp 37,138,-65,-52,-93,-8,-32,-38,-154,-157,-153,-166,-250,-234,-240,-230,-324,-273,-326,-300,-274,-110,-106,-103,-142,-143,-142,-144,-135,-145,-143,-137,-144,-131,-135,-135,-157,-163,-173,-159,-160,-147,-159,-159,-283,-293,-273,-283,-265,-279,-337,-310,-420,-396,-426,-435,-503,-376,-369,-366,-340,-277,-999,-975,-6115,-772,-938,-593,-1353,-728,-1568,-1262,-1985,-1629,-29960,-29959,-29977,-29978,-29976,-29979,-29978,-29979,-29977,-29977,-29970,-29971,-29966,-29962,-29968,-29969,-29979,-29980,-29978,-29979,-29981,-29982,-29983,-29984,-29984,-29985,-29985,-29986,-29986,-29987]} 1. d4 {[%emt 0:00:05]} d5 {[%emt 0:00:44]} 2. c4 {[%emt 0:00:07]} e6 {[%emt 0:00:05]} 3. Nc3 {[%emt 0:00:05]} Be7 {[%emt 0:00:05]} 4. Nf3 {[%emt 0:00:12]} Nf6 {[%emt 0:00:05]} 5. Bg5 {[%emt 0:00:48]} h6 {[%emt 0:00:05]} 6. Bh4 {[%emt 0:00:11]} O-O {[%emt 0:00:05]} 7. e3 {[%emt 0:00:05]} b6 {[%emt 0:00:05]} 8. cxd5 {[%emt 0:00:15]} Nxd5 {[%emt 0:00:05]} 9. Bxe7 {[%emt 0:00:12]} Qxe7 {[%emt 0:00:05]} 10. Be2 {[%emt 0:00:30]} Bb7 {[%emt 0:00:09]} 11. O-O {[%emt 0:00:08]} Nd7 {[%emt 0:00:37]} 12. Qd2 {[%emt 0:00:46]} c5 {[%emt 0:00:08]} 13. Rfd1 {[%emt 0:00:13]} Rac8 {[%emt 0:00:13]} 14. Rac1 {[%emt 0:00:39]} Nxc3 {[%emt 0:01:09]} 15. bxc3 {[%emt 0:00:05]} cxd4 {[%emt 0:01:10]} 16. cxd4 {[%emt 0:00:57]} Qa3 {[%emt 0:00:05]} 17. Bc4 {[%emt 0:04:53]} Nf6 {[%emt 0:02:35]} 18. Qd3 {[%emt 0:00:53]} Qa5 {[%emt 0:01:09]} 19. Ne5 {[%emt 0:00:39]} Rc7 $1 {[%emt 0:01:40]} 20. Qb3 {[%emt 0:05:07]} Nd5 {[%emt 0:03:58]} (20... Rfc8 $17 {[%cal Ob6b5] Strongly threatening ...b5!} 21. Rc2 (21. Nxf7 b5 $17) 21... b5 22. Bxe6 fxe6 (22... Rxc2 $2 23. Bxc8 Rc7 24. Bxb7 $18) 23. Qxe6+ Kh7 24. Qf5+ Kh8 (24... Kg8 25. Qe6+ Kh7 26. Qf5+ Kh8 27. Ng6+ Kg8 28. Rxc7 $17) 25. Ng6+ Kg8 26. Rxc7 Qxc7 27. Qxb5 Qc2) 21. e4 {[%emt 0:00:30]} Rfc8 $1 {[%emt 0:00:36]} (21... Nf4 $2 22. Qf3 $18) 22. exd5 {[%emt 0:02:44]} (22. Rc2 $15 b5 23. Bxd5 (23. exd5 $2 bxc4 24. Qg3 Bxd5 $19) 23... exd5 24. Rxc7 Rxc7 25. h4 (25. exd5 $2 Rc3 $19)) 22... exd5 $17 {[%emt 0:00:21]} 23. Qg3 {[%emt 0:03:11]} (23. Nxf7 $2 dxc4 24. Nxh6+ gxh6 $19) 23... dxc4 {[%emt 0:00:31]} 24. Re1 {[%emt 0:01:19]} (24. Ng4 $142) 24... c3 {[%emt 0:00:28]} 25. Ng4 {[%emt 0:00:12]} Rc6 {[%emt 0:02:50]} (25... Qxa2 $2 26. Nf6+ Kh8 27. Qxc7 (27. Ne8 f6 $18) 27... gxf6 28. Qxb7 $18) 26. Re7 {[%emt 0:01:32]} (26. Qe5 $142) 26... Qg5 $19 {[%emt 0:00:35]} 27. Re3 {[%emt 0:00:48]} c2 {[%emt 0:00:37]} 28. h4 {[%emt 0:00:05]} Qd5 {[%emt 0:00:21]} (28... Qd8 $19 29. Ne5 Rd6) 29. Rxc2 $17 {[%emt 0:00:08]} Qxd4 {[%emt 0:02:15]} (29... Rxc2 30. Nf6+ (30. Nxh6+ $2 {perishes.} Kf8 $19) 30... Kh8 31. Nxd5 Bxd5 32. a3 $14) 30. Nxh6+ {[%emt 0:00:08]} Rxh6 {[%emt 0:00:12]} 31. Rxc8+ {[%emt 0:00:05]} Bxc8 {[%emt 0:00:05]} 32. Re8+ {[%emt 0:00:05]} Kh7 {[%emt 0:00:05]} 33. Rxc8 {[%emt 0:00:05]} Rxh4 {[%emt 0:00:08]} ({Don't do} 33... Qxh4 34. Qxh4 Rxh4 35. Rc7 $17) 34. Rc1 {[%emt 0:00:05]} g6 {[%emt 0:00:11]} 35. Qf3 {[%emt 0:00:05]} Rf4 {[%emt 0:00:05]} 36. Qh3+ {[%emt 0:00:05]} Kg7 {[%emt 0:00:05]} 37. Qc3 {[%emt 0:00:05]} b5 {[%emt 0:00:10]} 38. g3 {[%emt 0:00:05]} Re4 {[%emt 0:00:10]} 39. Qxd4+ {[%emt 0:00:05]} Rxd4 {[%emt 0:00:05]} 40. Rb1 {[%emt 0:00:05]} (40. a3 $17 {was necessary.}) 40... b4 $19 {[%emt 0:00:08]} 41. Kg2 {[%emt 0:00:05]} a5 {[%emt 0:00:05]} 42. Rb2 {[%emt 0:00:05]} Rd3 {[%emt 0:00:05]} 43. Kf1 {[%emt 0:00:05]} Kf6 {[%emt 0:00:05]} 44. Ke2 {[%emt 0:00:05]} Rc3 {[%emt 0:00:05]} 45. Rd2 {[%emt 0:00:05]} Ke5 {[%emt 0:00:05]} 46. Kd1 {[%emt 0:00:05]} f6 {[%emt 0:00:05]} 47. Re2+ {[%emt 0:00:05]} Kd5 {[%emt 0:00:05]} 48. Re8 {[%emt 0:00:05]} Ra3 {[%emt 0:00:05]} 49. Rd8+ $2 {[%emt 0:00:05]} (49. Re2) 49... Ke4 $19 {[%emt 0:00:05]} 50. Rd2 {[%emt 0:00:05]} Kf3 {[%emt 0:00:05]} (50... Rd3 $142 51. g4 Rxd2+ 52. Kxd2 a4) 51. Ke1 {[%emt 0:00:05]} Kg2 {[%emt 0:00:14]} 52. Ke2 {[%emt 0:00:05]} f5 {[%emt 0:00:05]} 53. Rc2 {[%emt 0:00:05]} g5 {[%emt 0:00:05]} 54. Rd2 {[%emt 0:00:05]} f4 {[%emt 0:00:05]} 55. gxf4 {[%emt 0:00:05]} gxf4 {[%emt 0:00:05]} 56. Rc2 {[%emt 0:00:05]} f3+ {[%emt 0:00:05]} 57. Ke1 {[%emt 0:00:05]} Rc3 {[%emt 0:00:26]} 58. Rb2 {[%emt 0:00:05]} Rc8 {[%emt 0:00:08]} 59. Kd1 {[%emt 0:00:05]} Rd8+ {[%emt 0:00:08]} 60. Ke1 {[%emt 0:00:05]} Rh8 {[%emt 0:00:05]} 61. Rc2 {[%emt 0:00:05]} Rh1+ {[%emt 0:00:05]} 62. Kd2 {[%emt 0:00:05]} Kxf2 {[%emt 0:00:05]} 63. Kd3+ {[%emt 0:00:05]} Kg3 {[%emt 0:00:05]} 64. Rc8 {[%emt 0:00:05]} Rd1+ {[%emt 0:00:09]} 65. Ke3 {[%emt 0:00:05]} Re1+ {[%emt 0:00:05]} 66. Kd2 {[%emt 0:00:05]} f2 {[%emt 0:00:05]} 67. Rg8+ {[%emt 0:00:05]} Kh4 {[%emt 0:00:05]} 68. Rh8+ {[%emt 0:00:05]} Kg5 {[%emt 0:00:05]} 69. Rg8+ {[%emt 0:00:05]} Kh6 {[%emt 0:00:05]} 0-1

[Event "Marshall Masters September 2024"]
[Site "New York"]
[Date "2024.09.20"]
[Round "1.2"]
[White "Paragua, Mark"]
[Black "Rand, Steven J"]
[Result "1-0"]
[ECO "B14"]
[WhiteElo "2454"]
[BlackElo "1978"]
[Annotator "TA"]
[PlyCount "83"]
[EventDate "2024.09.20"]
[EventCountry "USA"]
[SourceTitle "playchess.com"]
[Source "ChessBase"]
[SourceQuality "1"]
[TimeMode "Bronstein"]
[TimeControl "1500+5"]

{[%evp 11,83,0,4,0,1,2,26,10,24,0,11,-63,0,0,48,31,35,34,66,66,70,50,52,20,32,15,25,21,24,12,33,0,0,0,64,53,69,39,147,133,390,427,650,694,690,641,877,168,158,166,220,220,239,254,244,266,133,269,448,299,339,308,537,535,530,530,629,622,908,887,997,969,758,752]} 1. e4 {[%emt 0:00:05]} c6 {[%emt 0:00:05]} 2. d4 {[%emt 0:00:05]} d5 {[%emt 0:00:05]} 3. exd5 {[%emt 0:00:08]} cxd5 {[%emt 0:00:05]} 4. c4 {[%emt 0:00:05]} Nf6 {[%emt 0:00:05]} 5. Nc3 {[%emt 0:00:05]} e6 {[%emt 0:00:06]} 6. c5 {[%emt 0:00:05]} Be7 {[%emt 0:00:11]} 7. Bb5+ {[%emt 0:00:05]} Bd7 {[%emt 0:00:53]} 8. Bxd7+ {[%emt 0:00:09]} Nbxd7 {[%emt 0:00:49]} 9. b4 {[%emt 0:00:28] White has an edge.} O-O {[%emt 0:01:09]} 10. Nf3 {[%emt 0:00:13]} Ne4 {[%emt 0:00:56]} 11. Qc2 {[%emt 0:00:10]} (11. Bb2 $11) 11... Nxc3 {[%emt 0:03:22]} (11... a5 $1 $15 12. Nxe4 dxe4 13. Qxe4 axb4 14. Qxb7 Nxc5 15. dxc5 Bf6) 12. Qxc3 $11 {[%emt 0:00:05]} Nf6 {[%emt 0:18:14]} (12... a5 $11 {is more appropriate.}) 13. O-O $14 {[%emt 0:00:31]} Ne4 {[%emt 0:00:00]} 14. Qd3 {[%emt 0:00:50]} Bf6 {[%emt 0:00:00]} 15. Bf4 {[%emt 0:00:44]} g6 {[%emt 0:00:00][%cal Bg7g6,Bg6g5,Bg5g4][%mdl 32]} 16. Rab1 {[%emt 0:02:17]} Bg7 {[%emt 0:00:00]} 17. Rfc1 {[%emt 0:00:13]} g5 {[%emt 0:00:00]} 18. Bd2 {[%emt 0:04:04]} g4 {[%emt 0:00:00]} 19. Ne5 {[%emt 0:00:15]} Qh4 {[%emt 0:00:00]} 20. Be1 {[%emt 0:06:38] next f3 is good for White.} (20. Be3 $5) 20... Qg5 {[%emt 0:00:00][%cal Of7f6]} 21. b5 {[%emt 0:00:42]} Bxe5 {[%emt 0:00:05]} 22. dxe5 {[%emt 0:00:05]} Qxe5 {[%emt 0:00:00]} (22... Rac8 $11) 23. f3 $1 {[%emt 0:01:06]} gxf3 {[%emt 0:00:00]} 24. gxf3 {[%emt 0:00:05]} Nf6 {[%emt 0:00:00]} ({Better is} 24... Ng5 $14) 25. Bc3 $36 {[%emt 0:00:27][%cal Be1c3,Bc3d2,Bd2g5][%mdl 3104] White has strong compensation. White is on the roll.} Qf4 {[%emt 0:00:00][%mdl 8192] [#]} (25... d4 $16 26. Qxd4 (26. Bxd4 Qf4 $18) 26... Qxd4+ 27. Bxd4 Nd5) 26. Kh1 $18 {[%emt 0:00:33]} e5 {[%emt 0:00:00]} (26... Kh8 $142 27. Re1 d4) 27. Rg1+ {[%emt 0:00:27]} Kh8 {[%emt 0:00:00]} 28. Bd2 {[%emt 0:00:17]} Qd4 {[%emt 0:00:00]} 29. Qxd4 {[%emt 0:00:05]} (29. Qf5 {[%cal Rf5f6]} Nh5 30. Bh6 (30. Qxh5 Qxd2 31. Qxe5+ f6 $18)) 29... exd4 {[%emt 0:00:00]} 30. Bg5 {[%emt 0:00:05] White is more active.} Nh5 {[%emt 0:00:00]} (30... Ne8 {keeps fighting.} 31. Be7 Rg8) 31. Rbd1 {[%emt 0:00:21]} f6 {[%emt 0:00:00]} 32. Bh6 {[%emt 0:00:52]} Rg8 {[%emt 0:00:00]} 33. Rxd4 {[%emt 0:00:14]} Rxg1+ {[%emt 0:00:00]} 34. Kxg1 {[%emt 0:00:05][%mdl 4096] Endgame. KRB-KRN. Loses the game.} Rd8 {[%emt 0:00:00]} (34... Ng7 35. Bxg7+ (35. Rxd5 Ne6 $18) 35... Kxg7 36. Rxd5 Kg8) 35. c6 {[%emt 0:00:23]} bxc6 {[%emt 0:00:00]} 36. bxc6 {[%emt 0:00:05]} Kg8 $2 {[%emt 0:00:00]} (36... Rc8 37. c7 (37. Rxd5 Ng7 $18) 37... Ng7) 37. c7 {[%emt 0:00:05] White is clearly winning.} Rc8 {[%emt 0:00:00]} 38. Rxd5 {[%emt 0:00:05] [#] White threatens Rd8+ and mate.} Rxc7 {[%emt 0:00:00]} 39. Rxh5 {[%emt 0:00:05]} Rc2 {[%emt 0:00:05]} 40. Ra5 {[%emt 0:00:05]} Rc7 {[%emt 0:00:00]} 41. Be3 {[%emt 0:00:05]} Rc3 {[%emt 0:00:00]} 42. Kf2 {[%emt 0:00:05] Weighted Error Value: White=0.29 (precise) /Black=0.58.  Loses game:     	---       	Black=1      Mistake:       	White=1     	Black=8      Inaccurate:     	White=4     	Black=2      OK:         	White=12    	Black=10     Best:        	White=1     	Black=1      Strong:       	White=1     	---} 1-0

[Event "Marshall Masters September 2024"]
[Site "New York"]
[Date "2024.09.20"]
[Round "1.3"]
[White "Thurlow, Ryan"]
[Black "Putnam, Liam"]
[Result "0-1"]
[ECO "D00"]
[WhiteElo "1920"]
[BlackElo "2398"]
[Annotator "TA"]
[PlyCount "70"]
[EventDate "2024.09.20"]
[EventCountry "USA"]
[SourceTitle "playchess.com"]
[Source "ChessBase"]
[SourceQuality "1"]
[TimeMode "Bronstein"]
[TimeControl "1500+5"]

{[%evp 9,70,0,0,12,0,-3,9,10,20,10,40,0,0,0,42,10,13,25,10,-20,-18,-6,18,19,35,-79,-91,-214,-202,-184,-160,-160,-112,-347,-349,-772,-780,-881,-873,-813,-895,-883,-853,-1114,-480,-1146,-1033,-1253,-1216,-1169,-1192,-1199,-1200,-29971,-29974,-29966,-29976,-29988,-29986,-29986,-29987,-29987,-29988]} 1. d4 {[%emt 0:00:07]} Nf6 {[%emt 0:00:08]} 2. Nc3 {[%emt 0:00:05]} d5 {[%emt 0:00:17]} 3. Bf4 {[%emt 0:00:05]} g6 {[%emt 0:01:02]} 4. e3 {[%emt 0:00:05]} Bg7 {[%emt 0:00:08]} 5. h4 {[%emt 0:00:05]} h5 {[%emt 0:00:24]} 6. Nf3 {[%emt 0:00:05]} (6. Nb5 $5 Na6 $8 7. Nc3 $11) 6... O-O {[%emt 0:00:16][%cal Oc7c5]} 7. Qd2 {[%emt 0:00:21]} c5 {[%emt 0:01:16]} 8. Ne5 {[%emt 0:00:05] The position is equal.} Nc6 {[%emt 0:00:59]} 9. f3 {[%emt 0:00:05] Prevents Ng4} Nd7 {[%emt 0:02:41]} 10. Nxd7 {[%emt 0:01:43]} Qxd7 {[%emt 0:02:56]} (10... cxd4 {seems wilder.} 11. Nxf8 dxc3 12. bxc3 Qa5) 11. dxc5 {[%emt 0:00:05]} e5 {[%emt 0:00:25]} 12. Bg3 {[%emt 0:00:47]} Rd8 {[%emt 0:00:28]} 13. O-O-O {[%emt 0:00:52]} Ne7 {[%emt 0:00:33]} 14. e4 {[%emt 0:01:34]} d4 {[%emt 0:00:57]} 15. Nb5 {[%emt 0:01:18]} b6 {[%emt 0:01:50] Prevents Qa5} 16. cxb6 {[%emt 0:01:41] Strongly threatening Nc7.} axb6 {[%emt 0:00:05]} 17. Na3 {[%emt 0:00:06]} (17. Kb1 $14 {keeps the upper hand.}) 17... Qc7 $17 {[%emt 0:04:19][%mdl 1024] And now ...Be6 would win. Black has strong compensation.} 18. Kb1 {[%emt 0:08:53]} (18. Nb5 $17 Qc5 (18... Rxa2 $2 19. Kb1 $18) 19. Kb1) 18... Be6 $19 {[%emt 0:00:45]} 19. Bb5 {[%emt 0:00:42]} Qc5 {[%emt 0:01:01]} 20. Qd3 {[%emt 0:00:17]} Nc6 {[%emt 0:01:59] Black has more active pieces.} ({Black should play} 20... Bf8 {[%cal Oa8a3] ...Rxa3! is the strong threat.} 21. Rc1 (21. Bc4 $2 Rxa3 22. Qxa3 Qxc4 $19) 21... Bh6) 21. Bxc6 $2 {[%emt 0:00:08]} (21. c4 $17) 21... Qxc6 {[%emt 0:00:05]} 22. Be1 $2 {[%emt 0:01:38]} (22. c3) 22... Bf8 {[%emt 0:00:35]} 23. Qb5 {[%emt 0:00:13] [#]} Bxa2+ $1 {[%emt 0:00:36][%mdl 512]} 24. Kc1 {[%emt 0:00:14]} Qc7 {[%emt 0:00:48][%cal Od8c8] ...Rdc8! would now be deadly.} 25. Bb4 {[%emt 0:00:22]} Bh6+ {[%emt 0:00:21]} 26. Bd2 {[%emt 0:00:05]} Ra5 {[%emt 0:00:12]} (26... Bc4 $142 27. Qb4 Bf8 (27... Bxd2+ $2 28. Kxd2 b5 29. Ra1 $19)) 27. Qd3 {[%emt 0:01:13] [#]} (27. Qxa5 $142 bxa5 28. Bxh6) 27... Bc4 $1 {[%emt 0:00:13][%mdl 512]} 28. Bxh6 {[%emt 0:00:48]} Bxd3 {[%emt 0:00:05]} 29. Rxd3 {[%emt 0:00:05]} Rc8 {[%emt 0:00:12][%cal Oa5a3] White must now prevent ...Rxa3!} 30. Kb1 {[%emt 0:00:47]} b5 {[%emt 0:00:06] Threatens to win with ...b4.} 31. c3 {[%emt 0:01:19] [#]} Rxa3 $1 {[%emt 0:00:18] Black mates.} 32. bxa3 {[%emt 0:00:10]} (32. Kc2 Ra2) 32... Qc4 {[%emt 0:00:05]} 33. Rhd1 {[%emt 0:01:14]} Qb3+ {[%emt 0:00:06]} 34. Kc1 {[%emt 0:00:07]} dxc3 {[%emt 0:00:27][%csl Gc3][%cal Rb3b2]} 35. Rd8+ {[%emt 0:00:15]} Kh7 {[%emt 0:00:06] Weighted Error Value: White=0.93/Black=0.25 (precise) .  Loses game:     	White=1     	---        Mistake:       	White=3     	Black=1      Inaccurate:     	White=3     	Black=2      OK:         	White=8     	Black=4      Best:        	---       	Black=2} 0-1

[Event "Marshall Masters September 2024"]
[Site "New York"]
[Date "2024.09.20"]
[Round "1.5"]
[White "Hinson, Miles"]
[Black "Bonin, Jay"]
[Result "0-1"]
[ECO "B12"]
[WhiteElo "1977"]
[BlackElo "2129"]
[Annotator "RC"]
[PlyCount "91"]
[EventDate "2024.09.20"]
[EventCountry "USA"]
[SourceTitle "playchess.com"]
[Source "ChessBase"]
[SourceQuality "1"]
[TimeMode "Bronstein"]
[TimeControl "1500+5"]

1. e4 {[%emt 0:00:07]} c6 {[%emt 0:00:08]} 2. d4 {[%emt 0:00:09]} d5 {[%emt 0:00:05]} 3. e5 {[%emt 0:00:05]} Bf5 {[%emt 0:00:17]} 4. Nd2 {[%emt 0:00:07]} e6 {[%emt 0:00:07]} 5. Nb3 {[%emt 0:00:05]} Nd7 {[%emt 0:00:13]} 6. Be3 {[%emt 0:00:05]} Ne7 {[%emt 0:00:28]} 7. Nf3 {[%emt 0:00:05]} Bg4 {[%emt 0:00:14]} 8. h3 {[%emt 0:01:14]} Bxf3 {[%emt 0:00:11]} 9. Qxf3 {[%emt 0:00:05]} Nf5 {[%emt 0:00:12]} 10. Be2 {[%emt 0:01:31]} Nxe3 {[%emt 0:00:57]} 11. Qxe3 {[%emt 0:00:05]} Be7 {[%emt 0:00:31]} 12. O-O {[%emt 0:00:15]} O-O {[%emt 0:00:14]} 13. f4 {[%emt 0:01:33]} c5 {[%emt 0:00:54]} 14. c3 {[%emt 0:00:33]} cxd4 {[%emt 0:00:56]} 15. cxd4 {[%emt 0:00:51]} f6 {[%emt 0:00:33]} 16. exf6 {[%emt 0:02:18]} Rxf6 {[%emt 0:00:17]} 17. Bg4 {[%emt 0:00:19]} Nf8 {[%emt 0:00:53]} 18. Rae1 {[%emt 0:02:06]} b6 {[%emt 0:02:24]} 19. Nc1 {[%emt 0:01:27]} Rc8 {[%emt 0:02:06]} 20. Nd3 {[%emt 0:01:28]} Bd6 {[%emt 0:00:38]} 21. Ne5 {[%emt 0:00:44]} Rc7 {[%emt 0:00:22]} 22. Qb3 {[%emt 0:02:39]} Bxe5 {[%emt 0:00:47]} 23. Rxe5 {[%emt 0:01:22]} Rc4 {[%emt 0:01:00]} 24. Qe3 {[%emt 0:00:19]} Qd6 {[%emt 0:00:35]} 25. a3 {[%emt 0:01:16]} a5 {[%emt 0:00:49]} 26. Re1 {[%emt 0:01:22]} Rc2 {[%emt 0:00:32]} 27. Qb3 {[%emt 0:00:42]} Qc6 {[%emt 0:00:51]} 28. f5 {[%emt 0:00:30]} exf5 {[%emt 0:00:26]} 29. Rxd5 {[%emt 0:01:00]} Rxb2 {[%emt 0:00:32]} 30. Qxb2 {[%emt 0:00:05]} Qxd5 {[%emt 0:00:05]} 31. Bf3 {[%emt 0:00:05]} Qd6 {[%emt 0:00:12]} 32. Qb3+ {[%emt 0:00:08]} Kh8 {[%emt 0:00:05]} 33. Qc3 {[%emt 0:00:56]} h6 {[%emt 0:00:31]} 34. Kh1 {[%emt 0:00:09]} Kh7 {[%emt 0:00:40]} 35. Re8 {[%emt 0:00:25]} Re6 {[%emt 0:00:23]} 36. Rxe6 {[%emt 0:00:22]} Nxe6 {[%emt 0:00:05]} 37. d5 {[%emt 0:00:12]} Nc5 {[%emt 0:00:46]} 38. Qe3 {[%emt 0:00:31]} b5 {[%emt 0:00:27]} 39. Qe8 {[%emt 0:00:26]} b4 {[%emt 0:00:21]} 40. axb4 {[%emt 0:00:16]} axb4 {[%emt 0:00:05]} 41. Bh5 {[%emt 0:00:09]} Ne4 {[%emt 0:03:06]} 42. Bf7 {[%emt 0:00:06]} Ng3+ {[%emt 0:00:07]} 43. Kh2 {[%emt 0:00:15]} Ne2+ {[%emt 0:00:13]} 44. Kh1 {[%emt 0:00:05]} Ng3+ {[%emt 0:00:08]} 45. Kh2 {[%emt 0:00:05]} g5 {[%emt 0:00:09]} 46. Bh5 {[%emt 0:00:05]} 0-1